[Event "Niedersachsen-ch A 2024"]
[Site "Verden Aller"]
[Date "2024.01.04"]
[Round "2.9"]
[White "Jacobi, Felix-Hagen"]
[Black "Tenne, Fabian"]
[Result "1-0"]
[ECO "C01"]
[WhiteElo "2056"]
[BlackElo "1817"]
[Annotator "NA RC"]
[PlyCount "97"]
[EventDate "2024.01.01"]
[EventType "swiss"]
[EventCountry "GER"]
[SourceTitle "playchess.com"]
[Source "ChessBase"]
[SourceQuality "1"]
[TimeControl "40/5400+30:1800+30"]

1. e4 {[%emt 0:00:05]} e6 {[%emt 0:00:09]} 2. d4 {[%emt 0:00:04]} d5 {[%emt 0:00:07]} 3. exd5 {[%emt 0:00:06]} exd5 {[%emt 0:00:07]} 4. Bd3 {[%emt 0:00:14]} Bd6 {[%emt 0:00:08]} 5. c3 {[%emt 0:00:06]} Nc6 {[%emt 1:32:29]} 6. Ne2 {[%emt 0:00:08]} Nge7 {[%emt 0:00:00]} 7. Ng3 {[%emt 1:33:17]} g6 {[%emt 0:00:00]} 8. Bg5 {[%emt 0:00:00]} Be6 {[%emt 0:01:30]} 9. Bf6 {[%emt 0:00:00]} Rg8 {[%emt 0:00:30]} 10. Nd2 {[%emt 0:01:30]} Qd7 {[%emt 0:00:00]} 11. Qc2 {[%emt 0:00:30]} Bg4 {[%emt 0:00:00]} 12. O-O {[%emt 0:00:30]} Qe6 {[%emt 0:01:30]} 13. Bxe7 {[%emt 0:00:00]} Nxe7 {[%emt 0:00:00]} 14. f3 {[%emt 0:00:00]} Bh5 {[%emt 0:01:00]} 15. Rfe1 {[%emt 0:00:00]} Qf6 {[%emt 0:00:00]} 16. Ndf1 {[%emt 0:00:00]} O-O-O {[%emt 0:01:00]} 17. Qf2 {[%emt 0:00:00]} Qg5 {[%emt 0:00:00]} 18. Re2 {[%emt 0:00:00]} f5 {[%emt 0:00:00]} 19. Rae1 {[%emt 0:00:00]} Rd7 {[%emt 0:01:30]} 20. Re6 {[%emt 0:04:00]} f4 {[%emt 0:00:00]} 21. Nxh5 {[%emt 0:00:00]} Qxh5 {[%emt 0:00:00]} 22. R1e2 {[%emt 0:00:00]} Nf5 {[%emt 0:00:00]} 23. Bxf5 {[%emt 0:01:30]} gxf5 {[%emt 0:00:00]} 24. Qe1 {[%emt 0:00:30]} Rdg7 {[%emt 0:00:00]} 25. Re8+ {[%emt 0:00:00]} Kd7 {[%emt 0:00:00]} 26. Rxg8 {[%emt 0:00:00]} Rxg8 {[%emt 0:03:30]} 27. Nd2 {[%emt 0:00:00]} Qg5 {[%emt 0:00:00]} 28. Nb3 {[%emt 0:00:00]} b6 {[%emt 0:00:00]} 29. Nc1 {[%emt 0:02:30]} Rg7 {[%emt 0:00:00]} 30. Nd3 {[%emt 0:00:00]} Re7 {[%emt 0:00:00]} 31. Kf1 {[%emt 0:00:00]} Re3 {[%emt 0:02:30]} 32. Nf2 {[%emt 0:01:30]} Qe7 {[%emt 0:00:00]} 33. Nd1 {[%emt 0:00:00]} Rxe2 {[%emt 0:00:00]} 34. Qxe2 {[%emt 0:00:00]} Qxe2+ {[%emt 0:00:00]} 35. Kxe2 {[%emt 0:00:00]} Kc6 {[%emt 0:00:00]} 36. Kd3 {[%emt 0:00:00]} a5 {[%emt 0:00:00]} 37. a4 {[%emt 0:00:00]} Be7 {[%emt 0:00:00]} 38. b3 {[%emt 0:00:00]} Bh4 {[%emt 0:00:00]} 39. c4 {[%emt 0:00:00]} Be1 {[%emt 0:04:00]} 40. Ke2 {[%emt 0:00:00]} Bb4 {[%emt 0:00:30]} 41. Nf2 {[%emt 0:00:00]} h6 {[%emt 0:30:30]} 42. Kd3 {[%emt 0:35:00]} Be7 {[%emt 0:00:00]} 43. Kc3 {[%emt 0:00:30]} Bb4+ {[%emt 0:01:00]} 44. Kc2 {[%emt 0:00:00]} Be7 {[%emt 0:00:00]} 45. Nd3 {[%emt 0:00:00]} Bd6 {[%emt 0:00:00]} 46. Kc3 {[%emt 0:00:00]} h5 {[%emt 0:00:00]} 47. h3 {[%emt 0:00:00]} h4 {[%emt 0:00:00]} 48. Kc2 {[%emt 0:00:00]} dxc4 {[%emt 0:00:00]} 49. bxc4 {[%emt 0:00:00]} 1-0

[Event "Niedersachsen-ch A 2024"]
[Site "Verden Aller"]
[Date "2024.01.04"]
[Round "2.10"]
[White "Miljkovic, Jovana"]
[Black "Hoke, Adrian"]
[Result "1-0"]
[ECO "D30"]
[WhiteElo "2035"]
[BlackElo "1765"]
[Annotator "NA RC"]
[PlyCount "71"]
[EventDate "2024.01.01"]
[EventType "swiss"]
[EventCountry "GER"]
[SourceTitle "playchess.com"]
[Source "ChessBase"]
[SourceQuality "1"]
[TimeControl "40/5400+30:1800+30"]

1. Nf3 {[%emt 0:00:02]} Nf6 {[%emt 0:00:27]} 2. c4 {[%emt 0:00:41]} e6 {[%emt 0:02:20]} 3. g3 {[%emt 1:31:17]} d5 {[%emt 0:02:19]} 4. d4 {[%emt 0:00:00]} c5 {[%emt 1:27:24]} 5. cxd5 {[%emt 0:00:00]} exd5 {[%emt 0:00:00]} 6. Bg2 {[%emt 0:01:30]} Nc6 {[%emt 0:00:00]} 7. O-O {[%emt 0:00:30]} cxd4 {[%emt 0:00:00]} 8. Nxd4 {[%emt 0:00:00]} Bc5 {[%emt 0:00:00]} 9. Nxc6 {[%emt 0:00:00]} bxc6 {[%emt 0:00:00]} 10. Qc2 {[%emt 0:00:00]} Qb6 {[%emt 0:00:00]} 11. Nc3 {[%emt 0:02:00]} Be7 {[%emt 0:03:30]} 12. Na4 {[%emt 0:00:30]} Qb5 {[%emt 0:00:00]} 13. Be3 {[%emt 0:00:30]} Bf5 {[%emt 0:00:00]} 14. Qxf5 {[%emt 0:00:00]} Qxa4 {[%emt 0:00:00]} 15. b3 {[%emt 0:00:00]} Qg4 {[%emt 0:02:00]} 16. Qxg4 {[%emt 0:00:00]} Nxg4 {[%emt 0:00:00]} 17. Bd4 {[%emt 0:00:00]} Bf6 {[%emt 0:00:00]} 18. Bxf6 {[%emt 0:00:00]} Nxf6 {[%emt 0:00:00]} 19. Rac1 {[%emt 0:00:00]} Kd7 {[%emt 0:00:00]} 20. Rc2 {[%emt 0:00:00]} g5 {[%emt 0:00:00]} 21. Rfc1 {[%emt 0:00:00]} Rac8 {[%emt 0:00:00]} 22. f3 {[%emt 0:00:00]} h5 {[%emt 0:00:00]} 23. e4 {[%emt 0:00:00]} dxe4 {[%emt 0:00:00]} 24. fxe4 {[%emt 0:00:00]} Rhe8 {[%emt 0:00:00]} 25. Rf1 {[%emt 0:00:00]} Nxe4 {[%emt 0:00:00]} 26. Rxf7+ {[%emt 0:00:00]} Kd6 {[%emt 0:00:00]} 27. Bxe4 {[%emt 0:00:00]} Rxe4 {[%emt 0:00:00]} 28. Rxa7 {[%emt 0:00:00]} Rce8 {[%emt 0:00:00]} 29. Rh7 {[%emt 0:00:00]} h4 {[%emt 0:00:00]} 30. Rh6+ {[%emt 0:00:00]} Kd7 {[%emt 0:00:00]} 31. gxh4 {[%emt 0:00:00]} gxh4 {[%emt 0:00:00]} 32. Rhxc6 {[%emt 0:00:00]} h3 {[%emt 0:00:00]} 33. R6c3 {[%emt 0:00:00]} Rg8+ {[%emt 0:03:55]} 34. Rg3 {[%emt 0:00:00]} Re1+ {[%emt 0:01:38]} 35. Kf2 {[%emt 0:00:00]} Rh1 {[%emt 0:00:37]} 36. Rd2+ {[%emt 0:11:30]} 1-0

[Event "Niedersachsen-ch A 2024"]
[Site "Verden Aller"]
[Date "2024.01.04"]
[Round "2.11"]
[White "Trunz, Michelle"]
[Black "Ay, Furkan"]
[Result "0-1"]
[ECO "D85"]
[WhiteElo "2023"]
[BlackElo "1544"]
[Annotator "NA RC"]
[PlyCount "72"]
[EventDate "2024.01.01"]
[EventType "swiss"]
[EventCountry "GER"]
[SourceTitle "playchess.com"]
[Source "ChessBase"]
[SourceQuality "1"]
[TimeControl "40/5400+30:1800+30"]

1. d4 {[%emt 0:00:01]} Nf6 {[%emt 0:00:31]} 2. c4 {[%emt 0:00:15]} g6 {[%emt 0:00:08]} 3. Nc3 {[%emt 0:00:04]} d5 {[%emt 0:00:34]} 4. cxd5 {[%emt 0:00:11]} Nxd5 {[%emt 0:00:13]} 5. e4 {[%emt 0:00:03]} Nxc3 {[%emt 0:00:18]} 6. bxc3 {[%emt 0:00:05]} Bg7 {[%emt 0:00:14]} 7. Be3 {[%emt 0:00:09]} c5 {[%emt 0:00:09]} 8. Qd2 {[%emt 0:00:11]} Qa5 {[%emt 0:00:10]} 9. Rc1 {[%emt 0:00:06]} O-O {[%emt 0:01:07]} 10. Nf3 {[%emt 0:01:22]} Rd8 {[%emt 0:03:11]} 11. d5 {[%emt 0:00:55]} e6 {[%emt 0:03:06]} 12. c4 {[%emt 0:02:55]} Qxd2+ {[%emt 0:03:56]} 13. Nxd2 {[%emt 0:08:37]} Na6 {[%emt 0:03:19]} 14. Bd3 {[%emt 0:03:00]} Nb4 {[%emt 0:03:37]} 15. Bb1 {[%emt 0:00:11]} Bb2 {[%emt 0:05:46]} 16. Rd1 {[%emt 0:01:06]} exd5 {[%emt 0:03:17]} 17. cxd5 {[%emt 0:04:26]} Na6 {[%emt 0:01:37]} 18. O-O {[%emt 0:02:24]} b5 {[%emt 0:01:57]} 19. Nb3 {[%emt 0:05:05]} c4 {[%emt 0:03:34]} 20. Nd4 {[%emt 0:12:24]} Bd7 {[%emt 0:01:06]} 21. e5 {[%emt 0:04:59]} Nc5 {[%emt 0:05:49]} 22. h3 {[%emt 0:07:34]} b4 {[%emt 0:02:52]} 23. Bc2 {[%emt 0:04:13]} a5 {[%emt 0:09:28]} 24. f4 {[%emt 0:02:05]} Rac8 {[%emt 0:06:24]} 25. f5 {[%emt 0:03:53]} a4 {[%emt 0:06:05]} 26. e6 {[%emt 0:06:07]} fxe6 {[%emt 0:01:57]} 27. fxe6 {[%emt 0:08:55]} b3 {[%emt 0:06:22]} 28. exd7 {[%emt 0:03:50]} Rxd7 {[%emt 0:00:12]} 29. axb3 {[%emt 0:01:32]} axb3 {[%emt 0:01:07]} 30. Nxb3 {[%emt 0:09:53]} cxb3 {[%emt 0:02:47]} 31. Rb1 {[%emt 0:02:17]} bxc2 {[%emt 0:01:53]} 32. Rxb2 {[%emt 0:00:38]} Nd3 {[%emt 0:01:05]} 33. Rb3 {[%emt 0:03:38]} c1=Q {[%emt 0:01:11]} 34. Bxc1 {[%emt 0:00:18]} Nxc1 {[%emt 0:00:15]} 35. Rb1 {[%emt 0:00:57]} Nd3 {[%emt 0:01:14]} 36. Rb5 {[%emt 0:02:58]} Rcd8 {[%emt 0:01:32]} 0-1

[Event "Niedersachsen-ch A 2024"]
[Site "Verden Aller"]
[Date "2024.01.04"]
[Round "2.12"]
[White "Schramm, Kilian"]
[Black "Loecken, Siegfried"]
[Result "0-1"]
[ECO "B22"]
[WhiteElo "1729"]
[BlackElo "2014"]
[Annotator "NA RC"]
[PlyCount "86"]
[EventDate "2024.01.01"]
[EventType "swiss"]
[EventCountry "GER"]
[SourceTitle "playchess.com"]
[Source "ChessBase"]
[SourceQuality "1"]
[TimeControl "40/5400+30:1800+30"]

1. e4 {[%emt 0:00:04]} c5 {[%emt 0:00:10]} 2. c3 {[%emt 0:00:08]} d5 {[%emt 0:00:21]} 3. exd5 {[%emt 0:00:02]} Nf6 {[%emt 0:00:13]} 4. Nf3 {[%emt 0:02:14]} Nxd5 {[%emt 0:00:40]} 5. Bc4 {[%emt 0:03:10]} Nc6 {[%emt 0:01:05]} 6. O-O {[%emt 0:00:46]} Bg4 {[%emt 0:00:55]} 7. Re1 {[%emt 0:01:15]} e6 {[%emt 0:01:13]} 8. d3 {[%emt 0:02:30]} Be7 {[%emt 0:00:39]} 9. Nbd2 {[%emt 1:24:51]} O-O {[%emt 0:01:15]} 10. Ne4 {[%emt 0:00:00]} Nb6 {[%emt 0:13:30]} 11. h3 {[%emt 0:00:00]} Bh5 {[%emt 0:04:53]} 12. Ng3 {[%emt 0:00:00]} Bg6 {[%emt 0:00:25]} 13. Bb5 {[%emt 0:00:00]} Bf6 {[%emt 0:01:46]} 14. Be3 {[%emt 0:00:00]} Be7 {[%emt 0:05:14]} 15. Bxc6 {[%emt 0:00:00]} bxc6 {[%emt 0:00:02]} 16. Ne5 {[%emt 0:00:00]} Qd5 {[%emt 0:03:13]} 17. Bf4 {[%emt 0:00:00]} Rac8 {[%emt 0:01:00]} 18. Qe2 {[%emt 0:00:00]} Bf6 {[%emt 0:07:09]} 19. Nxg6 {[%emt 0:00:00]} hxg6 {[%emt 0:00:03]} 20. Ne4 {[%emt 0:00:00]} Rfd8 {[%emt 0:01:11]} 21. Red1 {[%emt 0:00:00]} e5 {[%emt 0:06:08]} 22. Be3 {[%emt 0:00:00]} c4 {[%emt 0:00:23]} 23. Nxf6+ {[%emt 0:00:00]} gxf6 {[%emt 0:00:15]} 24. d4 {[%emt 0:00:00]} e4 {[%emt 0:02:05]} 25. Qg4 {[%emt 0:00:00]} Nd7 {[%emt 0:03:07]} 26. Rf1 {[%emt 0:00:00]} Rb8 {[%emt 0:01:58]} 27. Rab1 {[%emt 0:00:00]} Rb5 {[%emt 0:02:24]} 28. Bf4 {[%emt 0:00:00]} Nf8 {[%emt 0:05:00]} 29. f3 {[%emt 0:00:00]} Re8 {[%emt 0:00:52]} 30. Rfe1 {[%emt 0:00:00]} Re6 {[%emt 0:01:09]} 31. Bh6 {[%emt 0:00:00]} exf3 {[%emt 0:01:27]} 32. gxf3 {[%emt 0:00:00]} Rxb2 {[%emt 0:06:43]} 33. Rxb2 {[%emt 0:00:00]} Rxe1+ {[%emt 0:00:26]} 34. Kf2 {[%emt 0:00:00]} Re8 {[%emt 0:00:26]} 35. Rb7 {[%emt 0:00:00]} Qa5 {[%emt 0:10:32]} 36. Rb2 {[%emt 0:00:00]} Qxc3 {[%emt 0:01:35]} 37. Rd2 {[%emt 0:00:00]} g5 {[%emt 0:01:29]} 38. Bxg5 {[%emt 0:00:00]} fxg5 {[%emt 0:00:12]} 39. Qxg5+ {[%emt 0:00:00]} Ng6 {[%emt 0:00:15]} 40. h4 {[%emt 0:00:00]} Qc1 {[%emt 0:02:06]} 41. Kg3 {[%emt 0:32:05]} Re1 {[%emt 0:36:25]} 42. Qd8+ {[%emt 0:00:13]} Kg7 {[%emt 0:00:21]} 43. Rg2 {[%emt 0:00:18]} Qf4+ {[%emt 0:00:50]} 0-1

[Event "Niedersachsen-ch A 2024"]
[Site "Verden Aller"]
[Date "2024.01.04"]
[Round "2.13"]
[White "Zweigait, Leon"]
[Black "Kiesel, Lucas"]
[Result "0-1"]
[ECO "B07"]
[WhiteElo "1526"]
[BlackElo "1987"]
[Annotator "NA RC"]
[PlyCount "108"]
[EventDate "2024.01.01"]
[EventType "swiss"]
[EventCountry "GER"]
[SourceTitle "playchess.com"]
[Source "ChessBase"]
[SourceQuality "1"]
[TimeControl "40/5400+30:1800+30"]

1. e4 {[%emt 0:00:02]} d6 {[%emt 0:00:08]} 2. Nc3 {[%emt 0:00:10]} Nf6 {[%emt 0:00:04]} 3. f4 {[%emt 0:00:15]} g6 {[%emt 0:00:57]} 4. Bc4 {[%emt 0:00:08]} c6 {[%emt 0:01:40]} 5. Bb3 {[%emt 0:00:10]} Bg4 {[%emt 0:23:03]} 6. Nf3 {[%emt 0:00:17]} Bxf3 {[%emt 0:00:02]} 7. Qxf3 {[%emt 0:00:09]} e5 {[%emt 0:00:03]} 8. d3 {[%emt 0:00:30]} Nbd7 {[%emt 0:07:31]} 9. Bd2 {[%emt 0:02:31]} Bg7 {[%emt 0:16:00]} 10. a3 {[%emt 0:01:09]} b5 {[%emt 0:01:50]} 11. g4 {[%emt 0:04:39]} Nc5 {[%emt 0:15:30]} 12. Ba2 {[%emt 0:02:27]} Ne6 {[%emt 0:05:57]} 13. Bxe6 {[%emt 0:02:41]} fxe6 {[%emt 0:00:01]} 14. fxe5 {[%emt 0:00:13]} dxe5 {[%emt 0:00:01]} 15. Bg5 {[%emt 0:01:24]} O-O {[%emt 0:00:41]} 16. Qg3 {[%emt 0:04:45]} Qd6 {[%emt 0:03:09]} 17. Bxf6 {[%emt 0:02:00]} Rxf6 {[%emt 0:02:14]} 18. g5 {[%emt 0:00:44]} Rf7 {[%emt 0:00:17]} 19. Ke2 {[%emt 0:00:18]} Raf8 {[%emt 0:01:59]} 20. Raf1 {[%emt 0:00:10]} Rf4 {[%emt 0:00:37]} 21. Qh3 {[%emt 0:01:24]} R8f7 {[%emt 0:05:03]} 22. Nd1 {[%emt 0:00:59]} Bf8 {[%emt 0:03:54]} 23. Ne3 {[%emt 0:01:10]} Be7 {[%emt 0:01:44]} 24. Qg3 {[%emt 0:00:43]} Qd4 {[%emt 0:01:56]} 25. c3 {[%emt 0:00:55]} Qa4 {[%emt 0:01:18]} 26. Kd2 {[%emt 0:05:51]} Bc5 {[%emt 0:01:11]} 27. d4 {[%emt 0:04:18]} exd4 {[%emt 0:02:36]} 28. Rxf4 {[%emt 0:00:16]} dxe3+ {[%emt 0:00:02]} 29. Kc1 {[%emt 0:03:49]} Bd6 {[%emt 0:00:20]} 30. e5 {[%emt 0:02:49]} Rxf4 {[%emt 0:02:27]} 31. exd6 {[%emt 0:00:10]} e2 {[%emt 0:00:14]} 32. Qd3 {[%emt 0:02:25]} Rf8 {[%emt 0:02:11]} 33. Re1 {[%emt 0:08:28]} Qf4+ {[%emt 0:00:27]} 34. Kc2 {[%emt 0:00:34]} Rd8 {[%emt 0:00:39]} 35. d7 {[%emt 0:00:10]} Qf5 {[%emt 0:00:19]} 36. Rxe2 {[%emt 0:00:39]} Rxd7 {[%emt 0:00:14]} 37. Qxf5 {[%emt 0:00:13]} exf5 {[%emt 0:00:04]} 38. Re6 {[%emt 0:00:09]} c5 {[%emt 0:01:27]} 39. Rc6 {[%emt 0:00:28]} f4 {[%emt 0:00:36]} 40. Rf6 {[%emt 0:03:16]} Rf7 {[%emt 0:00:09]} 41. Rxf7 {[%emt 0:32:42]} Kxf7 {[%emt 0:30:08]} 42. Kd3 {[%emt 0:00:07]} Ke6 {[%emt 0:00:00]} 43. Ke4 {[%emt 0:00:00]} f3 {[%emt 0:00:00]} 44. Kxf3 {[%emt 0:00:00]} Kf5 {[%emt 0:00:00]} 45. h4 {[%emt 0:00:00]} c4 {[%emt 0:00:00]} 46. a4 {[%emt 0:00:00]} bxa4 {[%emt 0:00:00]} 47. Ke3 {[%emt 0:00:00]} Ke5 {[%emt 0:00:00]} 48. Kf3 {[%emt 0:00:00]} Kf5 {[%emt 0:00:00]} 49. Ke3 {[%emt 0:00:00]} Kg4 {[%emt 0:00:00]} 50. Kd4 {[%emt 0:00:00]} Kxh4 {[%emt 0:00:00]} 51. Kxc4 {[%emt 0:00:00]} Kxg5 {[%emt 0:00:00]} 52. Kb5 {[%emt 0:00:00]} Kf6 {[%emt 0:00:00]} 53. c4 {[%emt 0:00:00]} Ke7 {[%emt 0:00:00]} 54. Kc6 {[%emt 0:00:00]} h5 {[%emt 0:00:00]} 0-1

[Event "Niedersachsen-ch A 2024"]
[Site "Verden Aller"]
[Date "2024.01.04"]
[Round "2.14"]
[White "Rausch, Darius"]
[Black "Hebbinghaus, Holger"]
[Result "0-1"]
[ECO "D02"]
[WhiteElo "1742"]
[BlackElo "2164"]
[Annotator "RC"]
[PlyCount "82"]
[EventDate "2024.01.01"]
[EventType "swiss"]
[EventCountry "GER"]
[SourceTitle "playchess.com"]
[Source "ChessBase"]
[SourceQuality "1"]
[TimeControl "40/5400+30:1800+30"]

1. d4 {[%emt 0:00:01]} d5 {[%emt 0:00:06]} 2. Bf4 {[%emt 0:00:03]} Nf6 {[%emt 0:00:19]} 3. e3 {[%emt 0:00:05]} e6 {[%emt 0:00:12]} 4. Nf3 {[%emt 0:00:04]} Bd6 {[%emt 0:00:37]} 5. Ne5 {[%emt 0:00:04]} c5 {[%emt 0:00:20]} 6. Bb5+ {[%emt 0:00:43]} Ke7 {[%emt 0:02:18]} 7. c3 {[%emt 0:05:40]} Qc7 {[%emt 0:01:44]} 8. Bg3 {[%emt 0:03:29]} Rd8 {[%emt 0:06:35]} 9. O-O {[%emt 0:05:27]} Kf8 {[%emt 0:02:52]} 10. f4 {[%emt 0:05:08]} Nc6 {[%emt 0:05:13]} 11. Bh4 {[%emt 0:05:28]} Ne7 {[%emt 0:08:19]} 12. Bxf6 {[%emt 0:07:17]} gxf6 {[%emt 0:00:08]} 13. Ng4 {[%emt 0:00:11]} Kg7 {[%emt 0:05:26]} 14. Qe1 {[%emt 0:11:30]} f5 {[%emt 0:05:15]} 15. Ne5 {[%emt 0:03:23]} f6 {[%emt 0:03:48]} 16. Qg3+ {[%emt 0:02:44]} Ng6 {[%emt 0:00:14]} 17. Nxg6 {[%emt 0:01:37]} hxg6 {[%emt 0:00:08]} 18. Be2 {[%emt 0:02:23]} Rh8 {[%emt 0:04:57]} 19. Nd2 {[%emt 0:01:30]} e5 {[%emt 0:04:33]} 20. Qf3 {[%emt 0:07:46]} Be6 {[%emt 0:02:17]} 21. Rac1 {[%emt 0:04:46]} c4 {[%emt 0:13:01]} 22. g3 {[%emt 0:03:14]} b5 {[%emt 0:03:13]} 23. b4 {[%emt 0:02:09]} a5 {[%emt 0:00:50]} 24. a3 {[%emt 0:02:05]} axb4 {[%emt 0:01:35]} 25. axb4 {[%emt 0:00:06]} Ra2 {[%emt 0:00:25]} 26. Rfd1 {[%emt 0:02:22]} Rha8 {[%emt 0:01:54]} 27. Nf1 {[%emt 0:03:28]} R8a3 {[%emt 0:02:28]} 28. Rd2 {[%emt 0:00:50]} Ra1 {[%emt 0:02:59]} 29. Rdd1 {[%emt 0:01:55]} Rxc1 {[%emt 0:01:31]} 30. Rxc1 {[%emt 0:00:05]} exd4 {[%emt 0:00:33]} 31. exd4 {[%emt 0:00:15]} Bxb4 {[%emt 0:00:28]} 32. Ne3 {[%emt 0:08:02]} Rxc3 {[%emt 0:04:25]} 33. Rxc3 {[%emt 0:01:34]} Bxc3 {[%emt 0:00:03]} 34. Nxf5+ {[%emt 0:00:32]} Bxf5 {[%emt 0:00:09]} 35. Qxc3 {[%emt 0:00:05]} Qe7 {[%emt 0:00:22]} 36. Bf3 {[%emt 0:00:19]} b4 {[%emt 0:00:25]} 37. Qc1 {[%emt 0:00:39]} c3 {[%emt 0:02:57]} 38. g4 {[%emt 0:04:48]} Be4 {[%emt 0:00:30]} 39. Bd1 {[%emt 0:00:36]} Qa7 {[%emt 0:00:26]} 40. Qe3 {[%emt 0:01:45]} Qa1 {[%emt 0:00:17]} 41. Qe2 {[%emt 0:30:56]} c2 {[%emt 0:30:11]} 0-1

[Event "Niedersachsen-ch A 2024"]
[Site "Verden Aller"]
[Date "2024.01.04"]
[Round "2.15"]
[White "Sickmann, Lisa"]
[Black "Bulygin, Anton"]
[Result "1-0"]
[ECO "B33"]
[WhiteElo "1961"]
[BlackElo "2040"]
[Annotator "NA RC"]
[PlyCount "71"]
[EventDate "2024.01.01"]
[EventType "swiss"]
[EventCountry "GER"]
[SourceTitle "playchess.com"]
[Source "ChessBase"]
[SourceQuality "1"]
[TimeControl "40/5400+30:1800+30"]

1. e4 {[%emt 0:00:03]} c5 {[%emt 0:00:10]} 2. Nf3 {[%emt 0:00:11]} Nc6 {[%emt 0:00:12]} 3. d4 {[%emt 0:00:07]} cxd4 {[%emt 0:00:08]} 4. Nxd4 {[%emt 0:00:05]} Nf6 {[%emt 0:00:19]} 5. Nc3 {[%emt 0:00:09]} e5 {[%emt 0:00:14]} 6. Ndb5 {[%emt 0:00:11]} d6 {[%emt 0:00:15]} 7. Bg5 {[%emt 0:00:06]} a6 {[%emt 0:00:19]} 8. Na3 {[%emt 0:00:04]} b5 {[%emt 0:00:23]} 9. Bxf6 {[%emt 0:00:12]} gxf6 {[%emt 0:00:08]} 10. Nd5 {[%emt 0:00:05]} f5 {[%emt 0:00:53]} 11. c3 {[%emt 0:00:06]} Bg7 {[%emt 0:00:33]} 12. exf5 {[%emt 0:00:17]} Bxf5 {[%emt 0:00:18]} 13. Nc2 {[%emt 0:00:14]} O-O {[%emt 0:00:40]} 14. Nce3 {[%emt 0:00:39]} Be6 {[%emt 0:00:10]} 15. g3 {[%emt 0:01:35]} Ra7 {[%emt 0:00:35]} 16. Bg2 {[%emt 0:00:22]} Ne7 {[%emt 0:01:31]} 17. O-O {[%emt 0:00:22]} Nxd5 {[%emt 0:00:17]} 18. Nxd5 {[%emt 0:00:44]} f5 {[%emt 0:00:19]} 19. Qd3 {[%emt 0:03:11]} Kh8 {[%emt 0:01:30]} 20. Rad1 {[%emt 0:00:58]} Bxd5 {[%emt 0:02:17]} 21. Qxd5 {[%emt 0:01:39]} Rf6 {[%emt 0:00:53]} 22. Qc6 {[%emt 0:06:19]} Qd7 {[%emt 0:02:58]} 23. Qxd7 {[%emt 0:02:52]} Rxd7 {[%emt 0:00:08]} 24. Bd5 {[%emt 0:00:34]} Bf8 {[%emt 0:02:00]} 25. a4 {[%emt 0:01:00]} bxa4 {[%emt 0:01:23]} 26. Ra1 {[%emt 0:00:14]} Rc7 {[%emt 0:00:29]} 27. Rxa4 {[%emt 0:00:17]} Rc5 {[%emt 0:00:18]} 28. c4 {[%emt 0:01:05]} a5 {[%emt 0:00:35]} 29. Rfa1 {[%emt 0:00:25]} f4 {[%emt 0:00:16]} 30. Rxa5 {[%emt 0:01:10]} fxg3 {[%emt 0:00:07]} 31. hxg3 {[%emt 0:00:45]} Bg7 {[%emt 0:06:24]} 32. b4 {[%emt 0:02:33]} Rc8 {[%emt 0:00:43]} 33. Ra8 {[%emt 0:04:44]} Rff8 {[%emt 0:00:28]} 34. Rxc8 {[%emt 0:00:25]} Rxc8 {[%emt 0:00:08]} 35. Ra6 {[%emt 0:00:21]} Bf8 {[%emt 0:01:16]} 36. b5 {[%emt 1:14:26]} 1-0

[Event "Niedersachsen-ch A 2024"]
[Site "Verden Aller"]
[Date "2024.01.04"]
[Round "2.17"]
[White "Wilmink, Anna"]
[Black "Martin, Dennis"]
[Result "0-1"]
[ECO "B33"]
[WhiteElo "1822"]
[BlackElo "1991"]
[Annotator "NA RC"]
[PlyCount "126"]
[EventDate "2024.01.01"]
[EventType "swiss"]
[EventCountry "GER"]
[SourceTitle "playchess.com"]
[Source "ChessBase"]
[SourceQuality "1"]
[TimeControl "40/5400+30:1800+30"]

1. e4 {[%emt 0:00:02]} c5 {[%emt 0:00:01]} 2. Nf3 {[%emt 0:00:19]} Nc6 {[%emt 0:00:02]} 3. d4 {[%emt 0:00:15]} cxd4 {[%emt 0:00:02]} 4. Nxd4 {[%emt 0:00:10]} Nf6 {[%emt 0:00:03]} 5. Nc3 {[%emt 0:00:19]} e5 {[%emt 0:00:02]} 6. Ndb5 {[%emt 0:00:46]} d6 {[%emt 0:00:04]} 7. a4 {[%emt 0:01:27]} a6 {[%emt 0:00:11]} 8. Na3 {[%emt 0:00:17]} Be6 {[%emt 0:00:10]} 9. Bc4 {[%emt 0:02:30]} Bxc4 {[%emt 0:04:50]} 10. Nxc4 {[%emt 0:00:23]} Nxe4 {[%emt 0:01:48]} 11. Nxe4 {[%emt 0:07:02]} d5 {[%emt 0:00:03]} 12. Nxe5 {[%emt 0:07:21]} Nxe5 {[%emt 0:01:46]} 13. Ng3 {[%emt 0:02:57]} Bc5 {[%emt 0:00:38]} 14. O-O {[%emt 0:03:05]} O-O {[%emt 0:00:04]} 15. Kh1 {[%emt 0:05:42]} Qd7 {[%emt 0:02:42]} 16. f3 {[%emt 0:07:20]} Rfe8 {[%emt 0:01:56]} 17. b3 {[%emt 0:03:38]} Rac8 {[%emt 0:05:01]} 18. Bb2 {[%emt 0:03:17]} Ba7 {[%emt 0:05:15]} 19. Re1 {[%emt 0:05:06]} d4 {[%emt 0:01:56]} 20. Re4 {[%emt 0:08:03]} f5 {[%emt 0:02:52]} 21. Re2 {[%emt 0:05:05]} Rcd8 {[%emt 0:06:12]} 22. Qe1 {[%emt 0:12:07]} Nc6 {[%emt 0:02:45]} 23. Rd1 {[%emt 0:02:21]} Qf7 {[%emt 0:05:25]} 24. Qd2 {[%emt 0:05:24]} Bc5 {[%emt 0:05:32]} 25. Qd3 {[%emt 0:04:58]} g6 {[%emt 0:01:48]} 26. Rde1 {[%emt 0:01:13]} Re3 {[%emt 0:04:18]} 27. Qd1 {[%emt 0:02:37]} Bb4 {[%emt 0:00:49]} 28. Rf1 {[%emt 0:02:18]} Qe6 {[%emt 0:00:39]} 29. Bc1 {[%emt 0:02:14]} Re5 {[%emt 0:09:54]} 30. Bf4 {[%emt 0:05:07]} Rxe2 {[%emt 0:00:17]} 31. Nxe2 {[%emt 0:01:05]} Qf6 {[%emt 0:03:03]} 32. Bg3 {[%emt 0:00:50]} g5 {[%emt 0:01:56]} 33. Be1 {[%emt 0:00:50]} Bc5 {[%emt 0:00:41]} 34. Bf2 {[%emt 0:00:36]} f4 {[%emt 0:04:31]} 35. Nc1 {[%emt 0:00:32]} Ne7 {[%emt 0:02:19]} 36. Qe2 {[%emt 0:00:31]} Kg7 {[%emt 0:03:55]} 37. Qc4 {[%emt 0:00:22]} Bb6 {[%emt 0:00:34]} 38. c3 {[%emt 0:00:38]} Rc8 {[%emt 0:01:20]} 39. Bxd4 {[%emt 0:00:22]} Bxd4 {[%emt 0:00:15]} 40. Qxd4 {[%emt 0:00:11]} Qxd4 {[%emt 0:01:52]} 41. cxd4 {[%emt 0:30:08]} Nd5 {[%emt 0:30:02]} 42. g3 {[%emt 0:00:00]} Rc3 {[%emt 0:00:00]} 43. gxf4 {[%emt 0:00:00]} gxf4 {[%emt 0:00:00]} 44. Rg1+ {[%emt 0:00:00]} Kf6 {[%emt 0:00:00]} 45. Kg2 {[%emt 0:00:00]} Rc2+ {[%emt 0:00:00]} 46. Kh3 {[%emt 0:00:00]} Rf2 {[%emt 0:00:00]} 47. Rg8 {[%emt 0:00:00]} Rxf3+ {[%emt 0:00:00]} 48. Kg4 {[%emt 0:00:00]} Rf2 {[%emt 0:00:00]} 49. Rd8 {[%emt 0:00:00]} Ke6 {[%emt 0:00:00]} 50. h3 {[%emt 0:00:24]} Nf6+ {[%emt 0:00:00]} 51. Kg5 {[%emt 0:01:26]} h6+ {[%emt 0:00:00]} 52. Kxh6 {[%emt 0:01:12]} Rg2 {[%emt 0:00:00]} 53. Rc8 {[%emt 0:01:39]} f3 {[%emt 0:01:05]} 54. Nd3 {[%emt 0:00:35]} f2 {[%emt 0:00:05]} 55. Nf4+ {[%emt 0:01:36]} Kd7 {[%emt 0:00:02]} 56. Nxg2 {[%emt 0:01:19]} f1=Q {[%emt 0:00:04]} 57. Rf8 {[%emt 0:00:24]} Qxg2 {[%emt 0:00:52]} 58. Rxf6 {[%emt 0:00:06]} Qxh3+ {[%emt 0:00:13]} 59. Kg7 {[%emt 0:00:23]} Qxb3 {[%emt 0:00:03]} 60. a5 {[%emt 0:00:25]} Qd5 {[%emt 0:00:37]} 61. Rb6 {[%emt 0:00:56]} Qxd4+ {[%emt 0:05:51]} 62. Kg6 {[%emt 0:00:09]} Qxb6+ {[%emt 0:00:01]} 63. axb6 {[%emt 0:00:13]} Kc6 {[%emt 0:00:05]} 0-1